bitfinex-derivatives/quotes_BTCF0:USTF0_20251128
["timestamp","ask_amount","ask_price","bid_price","bid_amount"]
[1764352336065,0.04644,90697.0,90696.0,0.0337136]
[1764352336251,0.04644,90697.0,90696.0,0.0110236]
[1764352337465,0.04644,90697.0,90696.0,0.0337136]
[1764352337762,0.04644,90697.0,90696.0,0.0110236]
[1764352340854,0.05538,90695.0,90694.0,0.01469834]
[1764352341047,0.04222,90692.0,90691.0,0.0110241]
[1764352341564,0.04222,90692.0,90691.0,0.0561041]
[1764352343056,0.04222,90692.0,90691.0,0.0110241]
[1764352343563,0.04422,90692.0,90691.0,0.0110241]
[1764352348857,0.04418,90688.0,90687.0,0.01407005]
[1764352349063,0.04418,90688.0,90687.0,0.02107]
[1764352349258,0.04418,90688.0,90687.0,0.04269]
[1764352349459,0.002,90692.0,90691.0,0.0537142]
[1764352349667,0.002,90692.0,90691.0,0.4337142]
[1764352349966,0.02123,90717.0,90716.0,0.0537112]
[1764352350460,0.04445556,90726.0,90725.0,0.0320901]
[1764352350662,0.04445556,90726.0,90725.0,0.0537101]
[1764352351260,0.00027556,90726.0,90725.0,0.0537101]
[1764352351856,0.00827556,90726.0,90725.0,0.0537101]
[1764352353166,0.00027556,90726.0,90725.0,0.0547101]
[1764352355262,0.00027556,90726.0,90725.0,0.4347101]
[1764352355661,0.05717,90750.0,90749.0,0.0110172]
[1764352355965,0.04418,90756.0,90755.0,0.04269]
[1764352356267,1.54418,90756.0,90755.0,0.02107]
[1764352356467,0.04418,90755.0,90754.0,0.0110165]
[1764352357166,0.04418,90755.0,90754.0,0.0537065]
[1764352357369,0.04418,90755.0,90754.0,0.04269]
[1764352357671,1.506,90756.0,90753.0,0.0110166]
[1764352357672,0.04418,90754.0,90753.0,0.0110166]
[1764352357964,1.5170164,90756.0,90740.0,0.20533465]
[1764352357965,0.02123,90741.0,90740.0,0.25904285]
[1764352358173,0.02123,90741.0,90740.0,0.10387351]
[1764352358365,0.01299,90750.0,90749.0,0.0110172]
[1764352358571,0.05717,90750.0,90749.0,0.0320872]
[1764352359067,0.05717,90750.0,90745.0,0.02107]
[1764352359068,0.04418,90746.0,90745.0,0.02107]
[1764352359369,0.04618,90741.0,90740.0,0.25098609]
[1764352359569,0.04618,90741.0,90740.0,0.01372855]
[1764352359767,0.04418,90741.0,90740.0,0.01372855]
[1764352359965,0.04418,90752.0,90740.0,0.01372855]
[1764352360163,0.05717,90750.0,90742.0,0.20516934]
[1764352360374,1.55717,90750.0,90749.0,0.0537072]
[1764352360668,1.55717,90750.0,90740.0,0.21889789]
[1764352360669,0.04418,90748.0,90747.0,0.0110173]
[1764352360872,0.04418,90748.0,90747.0,0.0537073]
[1764352361466,0.04418,90748.0,90747.0,0.0110173]
[1764352361662,1.5,90749.0,90748.0,0.04269]
[1764352361972,0.17476,90777.0,90748.0,0.04269]
[1764352361973,0.02150544,90766.0,90765.0,0.0537052]
[1764352362270,0.04445544,90766.0,90765.0,0.0110152]
[1764352362577,0.10077282,90766.0,90765.0,0.0110152]
[1764352363073,0.10077282,90766.0,90765.0,0.0320852]
[1764352363270,0.10077282,90766.0,90765.0,0.0537052]
[1764352363472,0.07782282,90766.0,90765.0,0.0537052]
[1764352363670,0.10377282,90766.0,90765.0,0.0537052]
[1764352364971,0.04418,90764.0,90763.0,0.0110154]
[1764352365177,0.01299,90761.0,90756.0,0.20516934]
[1764352365479,0.01299,90761.0,90740.0,0.20533465]
[1764352365480,0.04418,90741.0,90740.0,0.20533465]
[1764352365775,0.04418,90741.0,90740.0,0.04285531]
[1764352366579,0.10049738,90741.0,90740.0,0.04285531]
[1764352366776,0.07754738,90741.0,90740.0,0.04685531]
[1764352367079,0.05631738,90741.0,90740.0,0.43685531]
[1764352367268,0.05631738,90741.0,90740.0,0.06033544]
[1764352367464,0.10049738,90741.0,90740.0,0.06033544]
[1764352368364,0.05631738,90741.0,90740.0,0.06033544]
[1764352368670,0.05631738,90741.0,90740.0,0.06133544]
[1764352369273,0.05631738,90741.0,90740.0,0.06233544]
[1764352369883,0.05631738,90741.0,90740.0,0.05833544]
[1764352370074,0.05631738,90741.0,90740.0,0.06333544]
[1764352370276,0.10049738,90741.0,90740.0,0.06333544]
[1764352371785,0.05631738,90741.0,90740.0,0.06333544]
[1764352372178,0.05631738,90741.0,90740.0,0.42333544]
[1764352372681,0.01299,90761.0,90742.0,0.011018]
[1764352372883,0.02123,90752.0,90751.0,0.24785934]
[1764352373086,0.04418,90763.0,90762.0,0.02162]
[1764352373277,0.04418,90761.0,90760.0,0.0110157]
[1764352374585,0.04418,90754.0,90753.0,0.23725604]
[1764352374781,0.04418,90754.0,90753.0,0.0320867]
[1764352374976,0.04418,90745.0,90744.0,0.20516934]
[1764352375175,0.04418,90741.0,90740.0,0.01364544]
[1764352375374,0.04418,90741.0,90740.0,0.06364544]
[1764352375577,0.04418,90741.0,90740.0,0.02466364]
[1764352376280,0.05839,90760.0,90759.0,0.0110159]
[1764352376682,0.0454,90757.0,90756.0,0.0110162]
[1764352378779,0.01299,90760.0,90752.0,0.0110167]
[1764352378780,0.0110165,90755.0,90752.0,0.0110167]
[1764352379081,0.0454,90753.0,90752.0,0.0110167]
[1764352379779,0.01284,90750.0,90743.0,0.22733934]
[1764352380083,0.0454,90744.0,90743.0,0.23835724]
[1764352380281,0.0454,90744.0,90743.0,0.0110179]
[1764352380477,0.0454,90750.0,90749.0,0.0553472]
[1764352380878,0.05824,90750.0,90749.0,0.0553472]
[1764352381182,0.08259246,90750.0,90749.0,0.0553472]
[1764352381376,0.08259246,90750.0,90749.0,0.0110172]
[1764352381576,0.0454,90744.0,90743.0,0.006]
[1764352382584,0.01284,90750.0,90740.0,0.22983298]
[1764352382585,0.0454,90741.0,90740.0,0.22983298]
[1764352382884,0.0454,90741.0,90740.0,0.02466364]
[1764352384087,0.0454,90741.0,90740.0,0.03166364]
[1764352385086,0.0454,90741.0,90740.0,0.03366364]
[1764352386180,0.0454,90750.0,90749.0,0.0553472]
[1764352386883,0.05824,90750.0,90749.0,0.0553472]
[1764352387081,0.05824,90750.0,90749.0,0.0331872]
[1764352387284,0.02323,90750.0,90749.0,0.0613472]
[1764352387789,0.0110144,90773.0,90749.0,0.0613472]
[1764352387790,0.0564161,90758.0,90757.0,0.0110162]
[1764352388179,0.0564161,90758.0,90749.0,0.0613472]
[1764352388180,0.05824,90750.0,90749.0,0.0613472]
[1764352388581,0.05839,90760.0,90759.0,0.0331859]
[1764352389684,0.0454,90760.0,90759.0,0.0553459]
[1764352389884,0.02323,90760.0,90759.0,0.4253459]
[1764352390191,0.02323,90760.0,90759.0,0.4273459]
[1764352390392,0.00027544,90766.0,90765.0,0.0553452]
[1764352390393,0.04567544,90766.0,90765.0,0.0553452]
[1764352390886,0.00027544,90766.0,90765.0,0.0553452]
[1764352391196,0.00027544,90766.0,90765.0,0.4653452]
[1764352391382,0.04567544,90766.0,90765.0,0.0553452]
[1764352391781,0.00027544,90766.0,90765.0,0.4853452]
[1764352392088,0.00027544,90766.0,90765.0,0.4863452]
[1764352393095,0.00027544,90766.0,90765.0,0.4853452]
[1764352393285,0.04567544,90766.0,90765.0,0.4883452]
[1764352393485,0.04567544,90766.0,90765.0,0.0140152]
[1764352393685,0.04567544,90766.0,90765.0,0.0120152]
[1764352393895,0.04567544,90766.0,90765.0,0.0170152]
[1764352394188,0.04567544,90766.0,90765.0,0.0613452]
[1764352394387,0.02350544,90766.0,90765.0,0.0613452]
[1764352394592,0.00027544,90766.0,90765.0,0.0613452]
[1764352394785,0.00027544,90766.0,90765.0,0.07522649]
[1764352395086,0.00027544,90766.0,90765.0,0.46522649]
[1764352395986,0.00027544,90766.0,90765.0,0.07522649]
[1764352396292,0.00027544,90766.0,90765.0,0.45522649]
[1764352396490,0.00027544,90766.0,90765.0,0.07522649]
[1764352396987,0.04567544,90766.0,90765.0,0.07522649]
[1764352397887,0.00027544,90766.0,90765.0,0.07522649]
[1764352399394,0.00027544,90766.0,90765.0,0.42522649]
[1764352399595,0.0454,90780.0,90779.0,0.0553435]
[1764352400194,0.05824,90790.0,90789.0,0.0331823]
[1764352400395,0.05824,90790.0,90789.0,0.0553423]
[1764352400788,1.55824,90790.0,90789.0,0.0553423]
[1764352401194,1.55824,90790.0,90789.0,0.0331823]
[1764352401388,1.55824,90790.0,90789.0,0.0548223]
[1764352401795,0.04374,90781.0,90780.0,0.25750018]
[1764352402096,0.04374,90781.0,90779.0,0.0130134]
[1764352402097,0.05763,90780.0,90779.0,0.0120134]
[1764352402796,0.05763,90780.0,90779.0,0.0352234]
[1764352403103,0.05763,90780.0,90779.0,0.0558634]
[1764352403396,0.02116,90780.0,90779.0,0.4258634]
[1764352403600,1.51284,90790.0,90789.0,0.0110123]
[1764352403805,1.51284,90790.0,90779.0,0.39404885]
[1764352403806,0.05763,90780.0,90779.0,0.01403545]
[1764352404686,0.05763,90780.0,90779.0,0.01303545]
[1764352404887,0.0547535,90779.0,90778.0,0.0342236]
[1764352405098,0.04374,90779.0,90778.0,0.0558636]
[1764352405402,0.04374,90779.0,90778.0,0.0110136]
[1764352405593,0.04374,90774.0,90773.0,0.0110142]
[1764352406096,0.04419,90771.0,90770.0,0.25766549]
[1764352406404,0.04419,90771.0,90770.0,0.00016531]
[1764352406597,0.77419,90771.0,90770.0,0.00016531]
[1764352406989,0.77419,90771.0,90758.0,0.055786]
[1764352406990,0.0552559,90759.0,90758.0,0.055786]
[1764352407194,0.04424,90759.0,90758.0,0.055786]
[1764352407699,0.04424,90759.0,90758.0,0.06925109]
[1764352407897,0.04424,90759.0,90758.0,0.02448109]
[1764352408203,0.84424,90759.0,90758.0,0.01346509]
[1764352408404,0.04424,90756.0,90755.0,0.0110164]
[1764352409493,0.04424,90756.0,90755.0,0.0180164]
[1764352410492,0.04424,90756.0,90755.0,0.0200164]
[1764352411106,0.04424,90756.0,90755.0,0.009]
[1764352411897,0.85424,90756.0,90755.0,0.009]
[1764352413900,0.068147,90750.0,90749.0,0.00016522]
[1764352414100,0.04424,90735.0,90734.0,0.032749]
[1764352414796,0.04424,90733.0,90731.0,0.07905746]
[1764352414995,0.02303,90731.0,90730.0,0.10078746]
[1764352415197,0.04424,90731.0,90730.0,0.02173]
[1764352415404,0.04424,90731.0,90730.0,0.04477]
[1764352416005,0.04424,90731.0,90730.0,0.0557895]
[1764352416203,0.04424,90731.0,90730.0,0.0647895]
[1764352416405,0.04424,90731.0,90730.0,0.4947895]
[1764352417013,0.04424,90731.0,90730.0,0.4967895]
[1764352417305,0.05713,90740.0,90739.0,0.0557884]
[1764352417512,0.04424,90740.0,90739.0,0.0557884]
[1764352418503,0.02121,90740.0,90739.0,0.4557884]
[1764352419008,0.02121,90740.0,90739.0,0.4587884]
[1764352419198,0.04424,90740.0,90739.0,0.0597884]
[1764352419402,0.04424,90740.0,90739.0,0.2497884]
[1764352419705,0.04424,90740.0,90739.0,0.0597884]
[1764352420210,0.05713,90740.0,90739.0,0.0597884]
[1764352420415,0.04424,90740.0,90739.0,0.2897884]
[1764352420607,0.04424,90740.0,90739.0,0.0597884]
[1764352421408,0.0552582,90740.0,90739.0,0.0597884]
[1764352422214,0.0552582,90740.0,90739.0,0.004]
[1764352422516,0.04424,90740.0,90739.0,0.0150184]
[1764352422702,0.04424,90740.0,90739.0,0.0367484]
[1764352422903,0.04424,90740.0,90739.0,0.0597884]
[1764352423802,0.0552582,90740.0,90739.0,0.0597884]
[1764352424008,0.0552582,90740.0,90739.0,0.0367484]
[1764352424516,0.04424,90740.0,90739.0,0.0367484]
[1764352425209,0.04424,90740.0,90739.0,0.0597884]
[1764352425415,0.04424,90740.0,90739.0,0.07268792]
[1764352427610,0.0552582,90740.0,90739.0,0.07268792]
[1764352427916,0.0552582,90740.0,90739.0,0.01689952]
[1764352430812,0.4952582,90740.0,90739.0,0.01689952]
[1764352431122,0.04424,90727.0,90726.0,0.03302546]
[1764352432406,0.04424,90727.0,90726.0,0.01129546]
[1764352432609,0.04424,90727.0,90726.0,0.01329546]
[1764352433511,0.04424,90727.0,90726.0,0.02655136]
[1764352435019,0.04424,90727.0,90726.0,0.03155136]
[1764352435609,0.04424,90727.0,90726.0,0.02053146]
[1764352435825,0.83424,90727.0,90726.0,0.00727556]
[1764352436618,0.56424,90727.0,90726.0,0.00727556]
[1764352438612,0.14424,90727.0,90726.0,0.00727556]
[1764352438813,0.14424,90727.0,90726.0,0.03035556]
[1764352439010,0.04424,90727.0,90726.0,0.05190556]
[1764352440118,0.02121,90727.0,90726.0,0.41190556]
[1764352440512,0.04328,90727.0,90726.0,0.05190556]
[1764352440720,0.45328,90727.0,90726.0,0.00727556]
[1764352441019,0.83328,90727.0,90726.0,0.00356736]
[1764352441227,0.04396,90712.0,90711.0,0.07905746]
[1764352441524,0.04396,90712.0,90703.0,0.07905746]
[1764352441525,0.04396,90704.0,90703.0,0.07905746]
[1764352441821,0.02189,90697.0,90696.0,0.07917191]
[1764352442020,0.04396,90697.0,90696.0,0.00011445]
[1764352442325,0.04396,90707.0,90706.0,0.0556524]
[1764352442629,0.04412532,90716.0,90715.0,0.0341013]
[1764352442830,0.11412532,90716.0,90715.0,0.0341013]
[1764352443015,0.04412532,90716.0,90715.0,0.0556513]
[1764352443523,0.00016532,90716.0,90715.0,0.4556513]
[1764352443711,0.04396,90736.0,90735.0,0.0556489]
[1764352444923,0.04396,90736.0,90735.0,0.0110189]
[1764352445115,0.04896,90736.0,90735.0,0.0110189]
[1764352445316,0.04896,90736.0,90729.0,0.0110195]
[1764352445317,0.0576,90730.0,90729.0,0.0110195]
[1764352445516,0.005,90736.0,90735.0,0.0556489]
[1764352446323,0.04896,90736.0,90735.0,0.0556489]
[1764352447216,0.005,90736.0,90735.0,0.0556489]
[1764352447621,0.04896,90736.0,90735.0,0.0566489]
[1764352448423,0.02689,90736.0,90735.0,0.0566489]
[1764352448624,0.04896,90736.0,90735.0,0.0566489]
[1764352449614,0.005,90736.0,90735.0,0.0566489]
[1764352450221,0.00016532,90745.0,90744.0,0.0556478]
[1764352451215,0.05212532,90745.0,90744.0,0.0566478]
[1764352452519,0.05212532,90745.0,90744.0,0.0350978]
[1764352453528,0.05212532,90745.0,90744.0,0.0120178]
[1764352454228,0.05212532,90745.0,90744.0,0.0350978]
[1764352454616,0.45212532,90745.0,90744.0,0.001]
[1764352455723,0.86212532,90745.0,90744.0,0.001]
[1764352455924,0.0551587,90736.0,90735.0,0.25750018]
[1764352456235,0.04414,90734.0,90733.0,0.0110191]
[1764352456527,0.21414,90734.0,90733.0,0.0110191]
[1764352456832,0.04414,90728.0,90726.0,0.2576655]
[1764352457028,0.0551598,90727.0,90726.0,0.00016532]
[1764352457325,0.05755,90711.0,90710.0,0.25750018]
[1764352457629,0.04414,90709.0,90708.0,0.0110221]
[1764352458128,0.04414,90709.0,90708.0,0.0558421]
[1764352458337,0.04414,90709.0,90708.0,0.0332021]
[1764352458630,0.04414,90709.0,90708.0,0.0110221]
[1764352459032,0.0214,90706.0,90705.0,0.0110224]
[1764352459228,0.05755,90700.0,90699.0,0.01118852]
[1764352459533,0.05755,90700.0,90699.0,0.00016532]
[1764352459920,0.05755,90700.0,90690.0,0.25750018]
[1764352459921,0.04414,90697.0,90696.0,0.01113795]
[1764352460126,0.04414,90697.0,90696.0,0.02436964]
[1764352460333,0.04414,90697.0,90696.0,0.04654964]
[1764352460926,0.04414,90697.0,90696.0,0.02436964]
[1764352461140,0.38714,90697.0,90696.0,0.01334614]
[1764352461538,0.83414,90697.0,90696.0,0.00851154]
[1764352461731,0.83414,90697.0,90687.0,0.20534758]
[1764352461732,0.04414,90688.0,90687.0,0.00016532]
[1764352462035,0.04414,90688.0,90687.0,0.04498532]
[1764352462335,0.04730532,90697.0,90696.0,0.0558436]
[1764352462533,0.0474021,90697.0,90696.0,0.0558436]
[1764352463031,0.0444021,90697.0,90696.0,0.0568436]
[1764352463236,0.0474021,90697.0,90696.0,0.0568436]
[1764352463838,0.0474021,90697.0,90696.0,0.0342036]
[1764352464036,0.0474021,90697.0,90696.0,0.0568436]
[1764352464831,0.0474021,90697.0,90696.0,0.0120236]
[1764352465237,0.0474021,90697.0,90696.0,0.0568436]
[1764352466739,0.0474021,90697.0,90696.0,0.0120236]
[1764352467033,0.0032621,90697.0,90696.0,0.4469236]
[1764352467439,0.0467321,90697.0,90696.0,0.001]
[1764352467629,0.4567321,90697.0,90696.0,0.001]
[1764352467830,0.0467321,90697.0,90696.0,0.0459]
[1764352468033,0.0032621,90697.0,90696.0,0.0459]
[1764352468437,0.0032621,90697.0,90696.0,0.4759]
[1764352469635,0.0251621,90697.0,90696.0,0.0459]
[1764352470226,0.0467321,90697.0,90696.0,0.0459]
[1764352470428,0.0467321,90697.0,90696.0,0.001]
[1764352470629,0.8067321,90697.0,90696.0,0.001]
[1764352470934,0.8067321,90697.0,90686.0,0.00027568]
[1764352470935,0.0544946,90688.0,90686.0,0.00027568]
[1764352471138,0.0544946,90688.0,90670.0,0.20518226]
[1764352471139,0.04347,90671.0,90670.0,0.23921896]
[1764352471342,0.04347,90671.0,90670.0,0.0559267]
[1764352471536,0.04347,90671.0,90661.0,0.20518226]
[1764352471742,0.0219,90662.0,90661.0,0.30111006]
[1764352471942,0.02200604,90662.0,90661.0,0.0559278]
[1764352472331,0.00010604,90662.0,90661.0,0.4259278]
[1764352472732,0.00010604,90662.0,90661.0,0.4319278]
[1764352473440,0.00010604,90662.0,90661.0,0.4339278]
[1764352474528,0.00010604,90662.0,90661.0,0.0639278]
[1764352474928,0.00010604,90662.0,90661.0,0.07674954]
[1764352475539,0.00010604,90662.0,90661.0,0.43674954]
[1764352476741,0.00016542,90671.0,90670.0,0.0689868]
[1764352477932,0.02206542,90671.0,90670.0,0.0559268]
[1764352478136,0.04363542,90671.0,90670.0,0.0469]
[1764352478341,0.04363542,90671.0,90670.0,0.02901]
[1764352479142,0.64363542,90671.0,90670.0,0.006]
[1764352480334,0.00016542,90671.0,90670.0,0.49396]
[1764352480545,0.00016542,90671.0,90670.0,0.06396]
[1764352481543,0.00016542,90671.0,90670.0,0.41396]
[1764352483941,0.04347,90690.0,90689.0,0.0559244]
[1764352484240,0.05735,90700.0,90699.0,0.0110232]
[1764352484438,0.04347,90697.0,90696.0,0.0110235]
[1764352484636,0.44347,90697.0,90696.0,0.0110235]
[1764352485740,0.44647,90697.0,90696.0,0.0120235]
[1764352486345,0.44647,90697.0,90696.0,0.001]
[1764352486545,0.85647,90697.0,90696.0,0.001]
[1764352488236,0.12647,90697.0,90696.0,0.001]
[1764352488643,0.50647,90697.0,90696.0,0.001]
[1764352488950,0.42647,90697.0,90696.0,0.001]
[1764352490247,0.04647,90697.0,90696.0,0.0459]
[1764352490645,0.04647,90697.0,90696.0,0.02401]
[1764352491042,0.04647,90697.0,90696.0,0.001]
[1764352491953,0.04647,90697.0,90696.0,0.01367464]
[1764352493744,0.14647,90697.0,90696.0,0.01367464]
[1764352493949,0.45647,90697.0,90696.0,0.01367464]
[1764352494343,0.49647,90697.0,90696.0,0.01367464]
[1764352494855,0.45647,90697.0,90696.0,0.01367464]
[1764352496747,0.4674935,90697.0,90696.0,0.01367464]
[1764352497757,0.45647,90697.0,90696.0,0.01367464]
[1764352499155,0.62647,90697.0,90696.0,0.01367464]
[1764352499353,0.45647,90697.0,90696.0,0.01367464]
[1764352499661,0.81647,90697.0,90696.0,0.01367464]
[1764352500155,0.81647,90697.0,90696.0,0.000894]
[1764352500456,0.00016542,90706.0,90705.0,0.04451]
[1764352500649,0.05729,90720.0,90719.0,0.0333108]
[1764352501050,0.04341,90705.0,90704.0,0.0333126]
[1764352501256,0.04341,90699.0,90698.0,0.0110233]
[1764352501460,0.01356,90710.0,90705.0,0.0110225]
[1764352501654,0.01356,90710.0,90705.0,0.0555325]
[1764352501655,0.04341,90706.0,90705.0,0.0555325]
[1764352502250,0.00016542,90717.0,90716.0,0.0110212]
[1764352502448,0.04357542,90717.0,90716.0,0.0555312]
[1764352504357,0.02205542,90717.0,90716.0,0.0555312]
[1764352504669,0.00016542,90717.0,90716.0,0.0555312]
[1764352504968,0.04457542,90717.0,90716.0,0.0565312]
[1764352505468,0.00016542,90717.0,90716.0,0.0595312]
[1764352506960,0.04341,90729.0,90728.0,0.0555297]
[1764352507273,0.04341,90740.0,90739.0,0.0555284]
[1764352507472,0.05697,90750.0,90749.0,0.02229]
[1764352507673,0.05697,90756.0,90755.0,0.0333064]
[1764352507968,0.05697,90756.0,90740.0,0.0555282]
[1764352507969,0.04341,90741.0,90740.0,0.0555282]
[1764352509167,0.04341,90741.0,90740.0,0.0565282]
[1764352509774,0.04341,90741.0,90740.0,0.0110182]
[1764352509974,0.04341,90741.0,90740.0,0.0120182]
[1764352510361,0.04341,90741.0,90740.0,0.0565282]
[1764352511367,0.04341,90741.0,90740.0,0.0555282]
[1764352511568,0.04441,90741.0,90740.0,0.0565282]
[1764352511764,0.04441,90741.0,90740.0,0.04551]
[1764352511964,0.44441,90741.0,90740.0,0.001]
[1764352512264,0.04341,90739.0,90738.0,0.0110185]
[1764352512473,0.79341,90739.0,90738.0,0.0110185]
[1764352512877,0.02189,90739.0,90738.0,0.0555285]
[1764352513169,0.001,90741.0,90740.0,0.0583]
[1764352513977,0.02189,90741.0,90740.0,0.04451]
[1764352514375,0.04341,90741.0,90740.0,0.04451]
[1764352514570,0.04341,90741.0,90740.0,0.04551]
[1764352516076,0.04341,90741.0,90740.0,0.001]
[1764352516278,0.02283,90739.0,90738.0,0.0110185]
[1764352516465,0.0110188,90736.0,90734.0,0.0110189]
[1764352516668,0.04545,90735.0,90734.0,0.0110189]
[1764352517476,0.43545,90735.0,90734.0,0.0110189]
[1764352518079,0.39545,90735.0,90734.0,0.0120189]
[1764352518665,0.39545,90735.0,90734.0,0.0130189]
[1764352518872,0.39545,90735.0,90734.0,0.002]
[1764352519070,0.04545,90732.0,90731.0,0.00016532]
[1764352519282,0.83545,90732.0,90731.0,0.00016532]
[1764352519578,0.39545,90732.0,90731.0,0.00016532]
[1764352520166,0.71545,90732.0,90731.0,0.00016532]
[1764352520369,0.39545,90732.0,90731.0,0.00016532]
[1764352520568,0.44545,90732.0,90731.0,0.00116532]
[1764352520981,0.69545,90732.0,90731.0,0.00116532]
[1764352521677,0.69545,90732.0,90731.0,0.00216532]
[1764352522476,0.44545,90732.0,90731.0,0.00216532]
[1764352522778,0.09545,90732.0,90731.0,0.00216532]
[1764352523179,0.09545,90732.0,90731.0,0.02506532]
[1764352523375,0.09545,90732.0,90731.0,0.00216532]
[1764352523576,0.04545,90732.0,90731.0,0.00216532]
[1764352524674,0.04545,90732.0,90731.0,0.04697532]
[1764352525981,0.05794,90740.0,90739.0,0.04476]
[1764352526179,0.04431,90740.0,90739.0,0.0557784]
[1764352527179,0.04531,90740.0,90739.0,0.0557784]
[1764352527384,0.04531,90740.0,90739.0,0.0567784]
[1764352529977,0.05851,90740.0,90739.0,0.0567784]
[1764352530280,0.04531,90740.0,90739.0,0.0567784]
[1764352530585,0.001,90740.0,90739.0,0.0567784]
[1764352531279,0.04531,90740.0,90739.0,0.0567784]
[1764352531682,0.001,90740.0,90739.0,0.0567784]
[1764352532273,0.04531,90740.0,90739.0,0.06954273]
[1764352532479,0.02389,90740.0,90739.0,0.06954273]
[1764352532880,0.02389,90740.0,90739.0,0.43954273]
[1764352533084,0.001,90740.0,90739.0,0.43954273]
[1764352534481,0.02305532,90748.0,90747.0,0.0557774]
[1764352534681,0.04447532,90748.0,90747.0,0.0557774]
[1764352536291,0.04747532,90748.0,90747.0,0.0557774]
[1764352536474,0.04747532,90748.0,90747.0,0.0110174]
[1764352542388,0.04747532,90748.0,90747.0,0.0557774]
[1764352544496,0.04747532,90748.0,90747.0,0.0335074]
[1764352545297,0.04747532,90748.0,90747.0,0.0110174]
[1764352545683,0.04747532,90748.0,90747.0,0.0557774]
[1764352545886,0.02605532,90748.0,90747.0,0.4857774]
[1764352546082,0.02605532,90748.0,90747.0,0.1757774]
[1764352546298,0.02605532,90748.0,90747.0,0.0557774]
[1764352546488,0.00316532,90748.0,90747.0,0.4357774]
[1764352546896,0.00316532,90748.0,90747.0,0.1057774]
[1764352547285,0.02305532,90748.0,90747.0,0.4767774]
[1764352547995,0.02305532,90748.0,90747.0,0.0867774]
[1764352548185,0.02305532,90748.0,90747.0,0.0577774]
[1764352548783,0.00016532,90748.0,90747.0,0.4767774]
[1764352548987,0.00016532,90748.0,90747.0,0.4777774]
[1764352550085,0.00016532,90748.0,90747.0,0.0577774]
[1764352550289,0.00016532,90748.0,90747.0,0.4277774]
[1764352550901,0.00016532,90748.0,90747.0,0.0877774]
[1764352551103,0.00016532,90748.0,90747.0,0.3677774]
[1764352551696,0.00016532,90748.0,90747.0,0.0767774]
[1764352551903,0.02305532,90748.0,90747.0,0.0777774]
[1764352552304,0.04447532,90748.0,90747.0,0.0777774]
[1764352553202,0.04447532,90748.0,90747.0,0.0767774]
[1764352553403,0.04447532,90748.0,90747.0,0.0777774]
[1764352553607,0.04447532,90748.0,90747.0,0.0767774]
[1764352553802,0.04447532,90748.0,90747.0,0.0777774]
[1764352554602,0.02305532,90748.0,90747.0,0.0777774]
[1764352554803,0.04447532,90748.0,90747.0,0.0777774]
[1764352555205,0.41767532,90748.0,90747.0,0.0130174]
[1764352555499,0.05767532,90748.0,90747.0,0.0130174]
[1764352556303,0.05767532,90748.0,90747.0,0.0355074]
[1764352556894,0.46767532,90748.0,90747.0,0.002]
[1764352557091,0.88326384,90748.0,90747.0,0.002]
[1764352557303,0.88326628,90748.0,90747.0,0.001]
[1764352558898,0.04403,90740.0,90739.0,0.01276433]
[1764352559208,0.04403,90739.0,90738.0,0.0110184]
[1764352559403,0.32403,90739.0,90738.0,0.0110184]
[1764352560405,0.45403,90739.0,90738.0,0.0110184]
[1764352560607,0.0110192,90735.0,90734.0,0.0324487]
[1764352560803,0.4250492,90735.0,90734.0,0.0324487]
[1764352560997,0.01336532,90748.0,90734.0,0.05524]
[1764352561197,0.42739532,90748.0,90747.0,0.04254]
[1764352561401,0.04403,90745.0,90744.0,0.0110177]
[1764352561601,0.02231,90745.0,90744.0,0.0535577]
[1764352561810,0.04403,90745.0,90744.0,0.0535577]
[1764352563310,0.04503,90745.0,90744.0,0.0535577]
[1764352563697,0.04503,90745.0,90744.0,0.0545577]
[1764352563895,0.04403,90745.0,90744.0,0.0545577]
[1764352564100,0.04603,90745.0,90744.0,0.0545577]
[1764352565304,0.04603,90745.0,90744.0,0.0120177]
[1764352565507,0.82603,90745.0,90744.0,0.001]
[1764352565709,0.0550492,90732.0,90731.0,0.00016532]
[1764352565911,0.4850492,90732.0,90731.0,0.00016532]
[1764352566112,0.04403,90732.0,90731.0,0.04270532]
[1764352566810,0.04403,90743.0,90742.0,0.053558]
[1764352567411,0.04419532,90748.0,90747.0,0.04254]
[1764352567709,0.02247532,90748.0,90747.0,0.04254]
[1764352568219,0.04419532,90748.0,90747.0,0.04254]
[1764352569510,0.04719532,90748.0,90747.0,0.04254]
[1764352570009,0.04619532,90748.0,90747.0,0.04254]
[1764352572805,0.05721262,90748.0,90747.0,0.04254]
[1764352573006,0.05917532,90748.0,90747.0,0.04254]
[1764352573425,0.05917532,90748.0,90747.0,0.05548978]
[1764352573718,0.45917532,90748.0,90747.0,0.01294978]
[1764352573903,0.0552578,90744.0,90743.0,0.0110179]
[1764352574109,0.4752578,90744.0,90743.0,0.0110179]
[1764352574402,0.46424,90744.0,90743.0,0.0110179]
[1764352574808,0.04424,90744.0,90743.0,0.0110179]
[1764352575013,0.04424,90744.0,90743.0,0.0333079]
[1764352575316,0.04524,90744.0,90743.0,0.0551579]
[1764352576519,0.04624,90744.0,90743.0,0.0551579]
[1764352577916,0.04424,90744.0,90743.0,0.0551579]
[1764352578109,0.04524,90744.0,90743.0,0.0551579]
[1764352578816,0.04624,90744.0,90743.0,0.0551579]
[1764352579316,0.04424,90744.0,90743.0,0.0551579]
[1764352579517,0.04524,90744.0,90743.0,0.0551579]
[1764352580616,0.001,90744.0,90743.0,0.4851579]
[1764352581119,0.04329532,90748.0,90747.0,0.0543574]
[1764352582523,0.04429532,90748.0,90747.0,0.0543574]
[1764352582721,0.05800532,90748.0,90744.0,0.0110177]
[1764352583024,0.07059272,90748.0,90747.0,0.0110174]
[1764352583225,0.05957532,90748.0,90747.0,0.0110174]
[1764352583621,0.05957532,90748.0,90747.0,0.0341674]
[1764352584518,0.05857532,90748.0,90747.0,0.0341674]
[1764352585023,0.05957532,90748.0,90747.0,0.0341674]
[1764352585426,0.05957532,90748.0,90747.0,0.0110174]
[1764352585629,0.05857532,90748.0,90747.0,0.0110174]
[1764352585824,0.05957532,90748.0,90747.0,0.0110174]
[1764352587632,0.05957532,90748.0,90747.0,0.0566274]
[1764352587932,0.00116532,90748.0,90747.0,0.0566274]
[1764352588135,0.02236532,90748.0,90747.0,0.0566274]
[1764352588328,0.04491532,90748.0,90747.0,0.0566274]
[1764352588632,0.0110161,90759.0,90747.0,0.0566274]